bitfinex-derivatives/quotes_SOLF0:USTF0_20220110
["timestamp","ask_amount","ask_price","bid_price","bid_amount"]
[1641817275628,4.09797351,138.1,138.04,1.27639915]
[1641817276028,4.09797351,138.1,138.06,1.27639915]
[1641817276430,4.09797351,138.12,138.03,1.27639915]
[1641817277132,4.09797351,138.12,138.05,7.23877086]
[1641817277731,12.059,138.14,138.06,1.27639915]
[1641817277732,4.09797351,138.13,138.06,1.27639915]
[1641817278535,4.09797351,138.13,138.07,22.42418179]
[1641817278734,8.059,138.14,138.08,5.79362279]
[1641817279533,8.059,138.14,138.09,9.66085726]
[1641817279833,8.059,138.14,138.1,20.0]
[1641817280034,15.07821692,138.21,138.11,5.79237184]
[1641817280234,15.07821692,138.21,138.12,9.04436647]
[1641817280434,4.09704301,138.2,138.15,20.0]
[1641817280635,4.09704301,138.2,138.15,32.54851988]
[1641817280837,4.09704301,138.2,138.16,2.13419715]
[1641817281234,4.09704301,138.2,138.17,2.13419715]
[1641817281637,4.09704301,138.21,138.18,2.13419715]
[1641817282038,4.09704301,138.21,138.15,6.758]
[1641817282237,4.0,138.19,138.15,6.758]
[1641817282439,4.0,138.19,138.16,1.27281139]
[1641817282838,4.09704301,138.21,138.16,1.27281139]
[1641817283040,4.09704301,138.18,138.13,24.94634042]
[1641817283239,4.0,138.17,138.13,24.94634042]
[1641817283442,4.0,138.17,138.14,1.27376679]
[1641817283842,4.09704301,138.16,138.13,24.94634042]
[1641817284041,8.09704301,138.16,138.1,66.6427]
[1641817284243,8.09704301,138.16,138.08,28.10898329]
[1641817284542,8.09704301,138.16,138.08,20.87178409]
[1641817284742,4.0,138.13,138.09,1.27437341]
[1641817284942,4.09704301,138.15,138.09,3.70071349]
[1641817284943,4.0,138.14,138.09,3.70071349]
[1641817285144,4.09704301,138.12,138.09,3.70071349]
[1641817285341,8.09704301,138.12,138.09,3.70071349]
[1641817285542,4.09704301,138.12,138.09,3.70071349]
[1641817285741,18.21853316,138.16,138.1,1.27437341]
[1641817285942,4.09704301,138.11,138.1,1.27437341]
[1641817286542,4.09704301,138.15,138.09,1.27437341]
[1641817286743,4.0,138.14,138.09,1.27437341]
[1641817286943,4.0,138.14,138.07,1.27437341]
[1641817287141,4.0,138.16,138.07,1.27437341]
[1641817287343,4.09704301,138.13,138.08,7.2371992]
[1641817287542,4.09704301,138.13,138.09,5.79294458]
[1641817287743,4.09704301,138.18,138.09,7.06731799]
[1641817287945,8.09704301,138.18,138.09,7.06731799]
[1641817288144,4.09704301,138.18,138.1,1.27437341]
[1641817288546,8.09704301,138.19,138.1,3.08337341]
[1641817288745,4.0,138.15,138.1,3.08337341]
[1641817288945,4.09704301,138.18,138.11,3.70125636]
[1641817289145,4.0,138.14,138.11,3.70125636]
[1641817289345,4.09704301,138.18,138.12,1.27437341]
[1641817289747,4.0,138.13,138.12,1.27437341]
[1641817290146,8.09704301,138.13,138.1,1.27437341]
[1641817290352,4.09704301,138.13,138.1,1.27437341]
[1641817290648,4.09704301,138.12,138.09,1.27437341]
[1641817290847,8.09704301,138.12,138.09,1.27437341]
[1641817291048,4.0,138.12,138.09,1.27437341]
[1641817291647,4.09704301,138.11,138.07,1.27437341]
[1641817292048,4.09704301,138.11,138.1,1.27437341]
[1641817292447,4.09704301,138.11,138.08,3.70209062]
[1641817292650,4.0,138.15,138.08,3.70209062]
[1641817292850,4.0,138.15,138.1,1.27437341]
[1641817293147,15.07821692,138.18,138.08,2.42771721]
[1641817293651,4.0,138.19,138.07,50.74325836]
[1641817293949,4.09837088,138.18,138.08,3.24832454]
[1641817294349,6.76859348,138.18,138.08,5.67572929]
[1641817294749,6.76859348,138.18,138.09,3.24832454]
[1641817294950,4.09837088,138.17,138.09,3.24832454]
[1641817295150,6.76859348,138.17,138.09,5.67572929]
[1641817295352,4.0,138.16,138.09,5.67572929]
[1641817295750,4.09837088,138.15,138.1,3.24832454]
[1641817295952,4.09837088,138.15,138.1,5.67572929]
[1641817296154,4.09837088,138.18,138.1,5.67572929]
[1641817296754,4.09837088,138.18,138.11,5.67572929]
[1641817297154,4.09837088,138.19,138.12,3.24832454]
[1641817297556,4.09837088,138.19,138.13,3.24832454]
[1641817297956,4.09837088,138.19,138.14,3.24832454]
[1641817298557,4.09837088,138.19,138.09,65.7841]
[1641817298758,4.0,138.13,138.09,65.7841]
[1641817298959,4.0,138.13,138.1,2.13527548]
[1641817299358,4.09837088,138.12,138.1,2.13527548]
[1641817299761,4.09837088,138.12,138.09,2.13527548]
[1641817300762,15.07821692,138.18,138.11,7.23562823]
[1641817301561,4.0,138.18,138.12,2.42660524]
[1641817301761,4.0,138.2,138.12,9.18660524]
[1641817301961,6.66940454,138.21,138.12,18.22604137]
[1641817302363,4.09702606,138.2,138.13,3.24745781]
[1641817302565,4.09702606,138.2,138.14,5.79114988]
[1641817303762,4.09702606,138.2,138.15,3.24745781]
[1641817303962,4.09702606,138.2,138.15,12.18645781]
[1641817304366,4.09702606,138.2,138.15,14.61205616]
[1641817304564,4.09702606,138.2,138.16,3.24745781]
[1641817305365,4.0,138.22,138.16,3.24745781]
[1641817305366,4.09702606,138.21,138.16,3.24745781]
[1641817307767,4.09702606,138.21,138.15,3.24745781]
[1641817307966,4.09702606,138.21,138.14,5.79114988]
[1641817307967,4.09702606,138.21,138.17,3.24745781]
[1641817308567,4.09702606,138.22,138.15,9.03792987]
[1641817308767,4.09702606,138.22,138.15,16.54292987]
[1641817308967,4.09702606,138.22,138.16,20.0]
[1641817309167,4.09702606,138.21,138.16,23.24745781]
[1641817309368,4.09702606,138.21,138.16,25.67440659]
[1641817309669,4.09702606,138.2,138.17,3.24745781]
[1641817310471,4.0,138.23,138.17,3.24745781]
[1641817310871,3.71748041,138.19,138.17,3.24745781]
[1641817311370,3.71748041,138.22,138.17,3.24745781]
[1641817312770,4.0,138.21,138.17,3.24745781]
[1641817312971,3.71748041,138.22,138.17,3.24745781]
[1641817313171,4.0,138.18,138.16,3.24745781]
[1641817313570,3.71748041,138.17,138.16,3.24745781]
[1641817314474,3.71748041,138.2,138.16,3.24745781]
[1641817314875,4.0,138.19,138.16,3.24745781]
[1641817315277,3.71748041,138.18,138.16,3.24745781]
[1641817317777,8.041e-05,138.18,138.16,3.24745781]
[1641817317978,6.303,138.21,138.16,3.24745781]
[1641817318180,6.303,138.21,138.17,5.78992207]
[1641817318780,6.303,138.21,138.18,5.78953389]
[1641817319380,6.303,138.21,138.19,4.09591195]
[1641817320278,2.60244633,138.2,138.19,4.09591195]
[1641817321280,6.303,138.21,138.19,4.09591195]
[1641817321683,15.07821692,138.26,138.19,4.09591195]
[1641817322283,3.34551335,138.25,138.19,4.09591195]
[1641817322684,7.34551335,138.26,138.19,4.09591195]
[1641817322884,3.34551335,138.26,138.19,4.09591195]
[1641817323087,3.34551335,138.25,138.19,4.09591195]
[1641817323285,4.0,138.21,138.19,4.09591195]
[1641817323689,4.0,138.2,138.17,4.09591195]
[1641817323885,8.594,138.21,138.17,4.09591195]
[1641817324086,4.0,138.18,138.17,4.09591195]
[1641817324485,7.34551335,138.18,138.14,4.09591195]
[1641817324686,4.0,138.17,138.14,4.09591195]
[1641817324889,4.0,138.15,138.14,4.09591195]
[1641817325289,7.34551335,138.15,138.13,4.09591195]
[1641817325489,4.0,138.14,138.13,4.09591195]
[1641817325890,7.34551335,138.14,138.13,4.09591195]
[1641817326395,7.34551335,138.14,138.1,4.09591195]
[1641817326592,3.34551335,138.14,138.1,4.09591195]
[1641817326793,3.34551335,138.14,138.13,4.09591195]
[1641817327193,7.34551335,138.14,138.13,4.09591195]
[1641817327393,4.0,138.14,138.08,4.09591195]
[1641817327593,4.0,138.14,138.08,19.17412887]
[1641817327893,4.0,138.14,138.09,4.09591195]
[1641817328093,4.0,138.14,138.09,6.52485737]
[1641817328594,4.0,138.16,138.1,4.09591195]
[1641817328794,4.0,138.11,138.1,6.52485737]
[1641817328996,12.297,138.11,138.1,5.737e-05]
[1641817329597,12.297,138.11,138.04,15.07821692]
[1641817329998,8.297,138.11,138.04,15.07821692]
[1641817330198,4.0,138.14,138.04,15.07821692]
[1641817330397,7.83351859,138.1,138.05,4.09938405]
[1641817330596,3.83351859,138.1,138.05,4.09938405]
[1641817330799,1.81,138.15,138.05,4.09938405]
[1641817330998,4.0,138.11,138.05,4.09938405]
[1641817331603,3.83335469,138.1,138.04,4.09938405]
[1641817331902,3.83335469,138.1,138.04,19.17760097]
[1641817332103,4.0,138.11,138.04,19.17760097]
[1641817332503,4.0,138.11,138.05,4.09938405]
[1641817333504,4.0,138.11,138.04,4.09938405]
[1641817334002,4.0,138.09,138.04,9.89458947]
[1641817334402,4.0,138.12,138.04,9.89458947]
[1641817334602,4.0,138.09,138.04,9.89458947]
[1641817334801,4.0,138.09,138.05,4.09938405]
[1641817336103,4.0,138.06,138.05,4.09938405]
[1641817336706,4.0,138.06,138.04,4.09938405]
[1641817337204,4.0,138.13,138.04,4.09938405]
[1641817337603,1.81,138.14,138.04,4.09938405]
[1641817337604,4.0,138.09,138.04,4.09938405]
[1641817338206,4.0,138.11,138.04,4.09938405]
[1641817338604,3.8340201,138.1,138.04,4.09938405]
[1641817338804,4.0,138.06,138.04,4.09938405]
[1641817339206,4.0,138.05,138.04,4.09938405]
[1641817339404,4.0,138.05,138.01,24.92549393]
[1641817339605,4.0,138.08,138.01,24.92549393]
[1641817339805,4.0,138.03,138.01,24.92549393]
[1641817340005,4.0,138.03,137.97,71.92801937]
[1641817340206,4.0,138.07,137.97,31.85657797]
[1641817340707,4.10124118,138.06,137.98,3.13744616]
[1641817340906,8.10124118,138.06,137.98,3.13744616]
[1641817341506,4.0,138.02,137.98,3.13744616]
[1641817341807,4.0,138.04,137.98,3.13744616]
[1641817342008,4.0,138.04,137.98,11.79644616]
[1641817342406,4.0,138.04,137.99,3.13744616]
[1641817342609,1.811,138.08,137.99,3.13744616]
[1641817342808,4.0,138.03,137.99,3.13744616]
[1641817344211,4.0,138.07,137.99,3.13744616]
[1641817344513,4.0,138.03,137.99,3.13744616]
[1641817346311,4.0,138.07,137.99,3.13744616]
[1641817346911,4.10092771,138.06,137.99,3.13744616]
[1641817347214,4.0,138.01,137.99,3.13744616]
[1641817348319,4.0,138.07,137.99,3.13744616]
[1641817348519,4.0,138.03,137.99,3.13744616]
[1641817348718,4.10112804,138.06,137.99,3.13744616]
[1641817349018,4.0,138.02,137.99,3.13744616]
[1641817349218,4.0,138.0,137.99,3.13744616]
[1641817349619,4.0,138.0,137.98,3.13744616]
[1641817349820,4.0,137.99,137.98,3.13744616]
[1641817351822,4.0,137.99,137.97,3.13744616]
[1641817352022,5.79547267,138.04,137.97,3.13744616]
[1641817352221,4.0,137.99,137.97,3.13744616]
[1641817353024,4.0,138.01,137.95,3.13744616]
[1641817353224,4.0,137.98,137.95,3.13744616]
[1641817354025,4.0,137.98,137.94,3.13744616]
[1641817354423,4.0,138.02,137.94,3.13744616]
[1641817354626,4.0,137.99,137.94,3.13744616]
[1641817354926,1.811,138.03,137.94,3.13744616]
[1641817354927,5.811,138.03,137.94,3.13744616]
[1641817355124,4.0,137.96,137.94,3.13744616]
[1641817356430,4.0,137.95,137.94,3.13744616]
[1641817357333,8.0,137.95,137.89,9.85414412]
[1641817357530,4.0,137.92,137.89,9.85414412]
[1641817357928,4.0,137.9,137.89,9.85414412]
[1641817358729,4.0,137.9,137.89,2.26310834]
[1641817359131,4.0,137.9,137.86,2.26310834]
[1641817359633,4.0,137.92,137.86,2.26310834]
[1641817359832,4.0,137.87,137.86,2.26310834]
[1641817360034,4.1045608,137.91,137.86,2.26310834]
[1641817360234,4.1045608,137.91,137.88,7.24795245]
[1641817360434,1.813,137.96,137.85,9.51237435]
[1641817360633,4.0,137.97,137.85,11.32437435]
[1641817360834,4.0,137.92,137.86,4.07510834]
[1641817361132,4.0,137.92,137.86,2.26310834]
[1641817361333,4.0,137.93,137.87,2.26310834]
[1641817361534,4.0,137.93,137.89,7.24742716]
[1641817361734,4.0,137.93,137.89,15.49942716]
[1641817361934,4.0,137.93,137.89,8.252]
[1641817362133,4.0,137.93,137.9,2.26310834]
[1641817363134,4.0,137.97,137.9,2.26310834]
[1641817363335,4.0,137.92,137.9,2.26310834]
[1641817363534,4.0,137.98,137.9,2.26310834]
[1641817363737,4.0,137.94,137.9,2.26310834]
[1641817364836,4.0,137.92,137.9,2.26310834]
[1641817365037,4.0,137.95,137.9,2.26310834]
[1641817365238,4.0,137.99,137.9,2.26310834]
[1641817365437,4.0,137.94,137.9,2.26310834]
[1641817365837,4.10348455,137.98,137.9,2.26310834]
[1641817366037,76.7695,138.0,137.89,2.26310834]
[1641817366242,4.0,137.95,137.89,22.26310834]
[1641817366442,4.0,137.95,137.89,2.26310834]
[1641817366643,5.80273263,137.87,137.85,1.0714414]
[1641817366843,8.0,137.86,137.8,5.805489]
[1641817367044,4.0,137.82,137.73,259.58499717]
[1641817367243,14.859,137.82,137.81,11.87203104]
[1641817367443,14.859,137.82,137.73,68.3613]
[1641817367643,4.0,137.8,137.73,7.25505133]
[1641817367846,4.10784324,137.81,137.74,1.73191955]
[1641817368347,4.0,137.75,137.74,1.73191955]
[1641817368547,6.859,137.82,137.74,1.73191955]
[1641817368947,4.0,137.79,137.74,1.73191955]
[1641817369149,8.10724026,137.81,137.74,1.73191955]
[1641817369348,4.0,137.75,137.74,1.73191955]
[1641817369550,4.0,137.8,137.75,2.40925006]
[1641817369749,8.10724026,137.8,137.75,2.40925006]
[1641817370149,4.0,137.8,137.76,1.73191955]
[1641817370354,4.0,137.78,137.76,1.73191955]
[1641817370551,4.0,137.8,137.76,1.73191955]
[1641817370750,6.859,137.82,137.76,1.73191955]
[1641817370950,4.0,137.77,137.76,1.73191955]
[1641817371150,6.859,137.82,137.76,1.73191955]
[1641817371550,8.1071419,137.81,137.74,1.73191955]
[1641817371750,4.1071419,137.81,137.74,1.73191955]
[1641817371950,6.859,137.82,137.74,1.73191955]
[1641817372151,4.0,137.84,137.74,1.73191955]
[1641817372550,4.0,137.84,137.75,2.41196659]
[1641817372953,4.10699529,137.83,137.75,2.41196659]
[1641817373251,4.0,137.8,137.75,2.41196659]
[1641817373452,4.0,137.8,137.76,1.73191955]
[1641817373650,4.10699529,137.83,137.76,1.73191955]
[1641817373850,73.3553,137.89,137.78,7.2524205]
[1641817374051,4.0,137.87,137.79,1.813]
[1641817374350,4.0,137.84,137.79,3.54491955]
[1641817374551,4.0,137.84,137.79,1.73191955]
[1641817374751,4.1058332,137.86,137.8,1.73191955]
[1641817374952,4.1058332,137.86,137.81,7.25084291]
[1641817375152,4.0,137.88,137.82,1.813]
[1641817375851,4.0,137.92,137.83,5.80420187]
[1641817376051,4.0,137.94,137.83,5.80420187]
[1641817376250,4.0,137.88,137.82,1.813]
[1641817376453,4.0,137.88,137.84,2.57926485]
[1641817376752,4.10542812,137.93,137.84,2.57926485]
[1641817376951,4.0,137.88,137.83,7.24979157]
[1641817377351,9.668,137.88,137.83,7.24979157]
[1641817377551,9.668,137.88,137.84,2.57926485]
[1641817378156,5.668,137.88,137.84,2.57926485]
[1641817378555,4.0,137.87,137.84,2.57926485]
[1641817378755,4.0,137.87,137.81,2.57926485]
[1641817379357,5.668,137.88,137.82,2.57926485]
[1641817379758,5.668,137.88,137.83,2.57926485]
[1641817379957,4.0,137.86,137.83,2.57926485]
[1641817380159,4.0,137.86,137.84,2.57926485]
[1641817380358,5.668,137.88,137.84,2.57926485]
[1641817380559,4.0,137.86,137.85,2.57926485]
[1641817380958,8.10602529,137.86,137.85,2.57926485]
[1641817381660,4.0,137.86,137.85,2.57926485]
[1641817381860,8.0,137.86,137.85,2.57926485]
[1641817382062,4.0,137.86,137.85,2.57926485]
[1641817382261,8.0,137.86,137.78,7.2524205]
[1641817382461,4.0,137.85,137.77,70.0184]
[1641817382660,10.857,137.85,137.77,70.0184]
[1641817383064,4.0,137.84,137.76,69.7441]
[1641817383261,4.0,137.79,137.75,7.25426188]
[1641817383461,11.642,137.79,137.75,7.25426188]
[1641817383662,11.642,137.79,137.76,2.06542169]
[1641817384063,4.0,137.78,137.76,4.47517075]
[1641817384262,7.642,137.79,137.76,4.47517075]
[1641817384663,7.642,137.79,137.77,2.06542169]
[1641817385062,4.0,137.78,137.77,2.06542169]
[1641817385263,4.0,137.78,137.77,4.47517075]
[1641817386764,4.0,137.78,137.77,2.06542169]
[1641817387166,1.814,137.84,137.73,2.06542169]
[1641817387367,1.814,137.84,137.77,2.41462395]
[1641817387568,4.0,137.81,137.77,10.34562395]
[1641817387768,4.0,137.81,137.78,2.06542169]
[1641817387968,4.10672106,137.83,137.78,2.06542169]
[1641817388370,4.0,137.84,137.8,7.25163162]
[1641817388569,4.0,137.84,137.8,7.265]
[1641817388771,4.0,137.84,137.81,2.06542169]
[1641817389071,4.0,137.87,137.81,2.06542169]
[1641817389269,4.0,137.83,137.82,2.06542169]
[1641817390875,8.10673218,137.83,137.82,2.06542169]
[1641817396876,8.10673218,137.83,137.82,4.49258309]
[1641817397977,4.0,137.83,137.82,4.49258309]
[1641817398779,12.77512736,137.89,137.82,4.49258309]
[1641817398979,4.0,137.83,137.82,12.09158309]
[1641817399178,10.96212736,137.89,137.82,12.09158309]
[1641817399379,4.0,137.88,137.82,12.09158309]
[1641817399779,4.0,137.83,137.82,10.0261614]
[1641817399982,11.218,137.83,137.82,2.4271614]
[1641817400380,11.218,137.83,137.81,15.25596081]
[1641817400381,11.218,137.83,137.8,15.25596081]
[1641817400584,7.218,137.83,137.8,15.25596081]
[1641817401186,7.218,137.83,137.81,15.25596081]
[1641817401381,11.218,137.83,137.81,15.25596081]
[1641817401579,7.218,137.83,137.81,15.25596081]
[1641817402680,7.218,137.83,137.8,40.68367832]
[1641817403385,7.218,137.83,137.82,15.3389331]
[1641817405285,7.218,137.83,137.79,40.68367832]
[1641817405686,4.0,137.82,137.79,40.68367832]
[1641817406285,7.218,137.83,137.79,40.68367832]
[1641817406689,7.218,137.83,137.81,15.33952681]
[1641817406887,11.218,137.83,137.81,15.33952681]
[1641817407086,7.218,137.83,137.81,15.33952681]
[1641817407487,4.0,137.82,137.81,15.33952681]
[1641817407687,8.0,137.82,137.81,15.33952681]
[1641817407889,4.0,137.82,137.81,15.33952681]
[1641817408092,12.10767745,137.82,137.81,15.33952681]
[1641817408288,8.10767745,137.82,137.81,15.33952681]
[1641817408688,8.10767745,137.82,137.78,15.33952681]
[1641817409389,4.0,137.79,137.78,15.33952681]
[1641817409788,4.0,137.79,137.77,15.33952681]
[1641817409990,7.218,137.83,137.77,15.33952681]
[1641817410390,4.0,137.82,137.77,23.34252681]
[1641817410595,4.0,137.82,137.78,15.33952681]
[1641817410893,11.218,137.83,137.78,15.33952681]
[1641817411094,7.218,137.83,137.78,15.33952681]
[1641817411294,7.218,137.83,137.8,15.33952681]
[1641817411493,4.0,137.88,137.8,22.59089551]
[1641817411694,4.0,137.88,137.81,1.813]
[1641817412293,4.0,137.88,137.84,15.33952681]
[1641817413897,72.8828,137.93,137.84,15.33952681]
[1641817414100,4.0,137.89,137.84,15.33952681]
[1641817414500,4.0,137.89,137.84,7.24952878]
[1641817414699,4.0,137.89,137.85,1.96302486]
[1641817415299,83.03086081,137.95,137.87,7.24795245]
[1641817415300,87.03086081,137.95,137.87,7.24795245]
[1641817415499,19.25596081,137.95,137.87,7.24795245]
[1641817415700,4.10476808,137.94,137.88,1.96302486]
[1641817415900,4.10476808,137.94,137.88,3.77502486]
[1641817416600,8.10476808,137.94,137.88,3.77502486]
[1641817417200,8.10476808,137.94,137.89,2.42765218]
[1641817417401,4.10476808,137.94,137.89,2.42765218]
[1641817417603,4.0,137.98,137.9,27.24611427]
[1641817417899,19.25596081,138.0,137.91,7.61270469]
[1641817418100,55.93963913,138.03,137.91,7.61270469]
[1641817418300,15.25596081,138.03,137.91,10.04035687]
[1641817418701,4.0,137.99,137.91,10.04035687]
[1641817419301,4.10342043,137.98,137.92,2.42765218]
[1641817419504,5.91542043,137.98,137.92,2.42765218]
[1641817420001,4.0,137.96,137.92,2.42765218]
[1641817420202,4.0,137.95,137.9,7.24611427]
[1641817420401,8.10342043,137.95,137.9,7.24611427]
[1641817421102,4.10342043,137.94,137.9,7.24611427]
[1641817421503,4.0,137.97,137.91,1.812]
[1641817421702,2.043e-05,137.98,137.91,1.812]
[1641817421902,4.0,137.98,137.91,1.812]
[1641817422403,4.0,137.98,137.91,7.61258691]
[1641817422603,4.0,137.97,137.91,7.61258691]
[1641817422804,4.0,137.97,137.92,2.41586523]
[1641817423004,8.357,137.99,137.93,7.24453943]
[1641817423404,12.357,137.99,137.93,7.24453943]
[1641817423607,8.357,137.99,137.93,7.24453943]
[1641817423804,4.10323412,137.98,137.93,7.24453943]
[1641817424005,4.10323412,137.98,137.94,1.812]
[1641817424206,8.357,137.99,137.95,5.79913664]
[1641817424408,1.811,138.06,137.98,25.79789647]
[1641817424609,4.0,138.05,137.99,1.811]
[1641817424810,17.06696081,138.09,138.0,7.24112962]
[1641817425208,4.10184747,138.08,138.0,7.24112962]
[1641817425908,4.0,138.05,138.0,7.24112962]
[1641817426109,4.10184747,138.08,138.0,7.24112962]
[1641817426310,4.0,138.07,138.0,7.24112962]
[1641817426510,4.0,138.06,138.01,1.811]
[1641817426708,4.0,138.06,138.0,9.05212962]
[1641817427009,4.10184747,138.05,138.0,9.05212962]
[1641817427812,8.10184747,138.05,138.0,9.05212962]
[1641817428013,4.10184747,138.05,138.0,9.05212962]
[1641817428513,4.0,138.06,138.0,9.05212962]
[1641817428813,4.0,138.05,138.0,9.05212962]
[1641817429014,8.10184747,138.05,138.0,9.05212962]
[1641817429214,4.0,138.03,138.0,1.811]
[1641817429414,4.0,138.03,137.99,5.79711061]
[1641817429815,4.10184747,138.02,137.99,5.79711061]
[1641817430018,4.10184747,138.02,137.97,1.811]
[1641817430216,4.0,137.98,137.96,1.811]
[1641817430416,4.0,137.98,137.94,6.95904607]
[1641817430815,5.812,138.02,137.97,4.10375729]
[1641817431016,4.0,138.02,137.97,4.10375729]
[1641817431216,4.0,138.02,137.95,4.10375729]
[1641817431917,4.0,137.96,137.95,4.10375729]
[1641817432521,4.0,137.96,137.93,4.10375729]
[1641817432717,5.812,137.99,137.93,4.10375729]
[1641817432918,4.0,137.94,137.9,4.10375729]
[1641817433118,4.0,137.98,137.9,4.10375729]
[1641817433320,4.0,137.98,137.91,1.812]
[1641817433519,4.0,137.98,137.92,7.24532676]
[1641817433719,4.0,137.98,137.92,4.10375729]
[1641817435122,4.0,138.01,137.92,4.10375729]
[1641817435322,5.812,138.01,137.92,4.10375729]
[1641817435522,4.0,137.95,137.92,4.10375729]
[1641817435721,4.0,138.0,137.92,4.10375729]
[1641817435922,4.0,137.95,137.92,4.10375729]
[1641817436123,4.0,137.94,137.92,4.10375729]
[1641817436524,4.0,137.96,137.92,4.10375729]
[1641817436924,4.0,137.97,137.92,4.10375729]
[1641817437323,5.812,138.01,137.92,4.10375729]
[1641817437523,4.0,137.98,137.92,4.10375729]
[1641817437727,4.0,137.98,137.92,5.91575729]
[1641817438226,77.0635,138.04,137.93,9.9037717]
[1641817438624,4.0,137.98,137.94,4.10375729]
[1641817440129,77.0635,138.04,137.94,4.10375729]
[1641817440429,4.0,137.99,137.94,4.10375729]
[1641817440628,4.0,138.03,137.94,4.10375729]
[1641817440830,4.0,137.99,137.94,4.10375729]
[1641817442731,4.0,137.96,137.94,4.10375729]
[1641817442932,4.0,137.97,137.94,4.10375729]
[1641817443131,5.812,138.01,137.93,4.10375729]
[1641817443331,4.0,138.01,137.93,4.10375729]
[1641817443532,4.0,138.01,137.92,4.10375729]
[1641817443732,4.0,137.95,137.92,4.10375729]
[1641817444033,4.0,137.93,137.92,4.10375729]
[1641817444932,4.0,137.94,137.92,4.10375729]
[1641817445134,4.0,137.95,137.92,4.10375729]
[1641817445834,3.94243075,137.94,137.92,4.10375729]
[1641817446535,3.94243075,137.98,137.92,4.10375729]
[1641817447736,4.0,137.95,137.92,4.10375729]
[1641817448337,3.94243075,137.94,137.92,4.10375729]
[1641817449738,4.0,137.93,137.92,4.10375729]
[1641817451740,4.0,137.95,137.92,4.10375729]
[1641817452440,3.9423322,137.94,137.92,4.10375729]
[1641817454042,7.9423322,137.94,137.92,4.10375729]
[1641817454541,4.0,137.94,137.92,4.10375729]
[1641817455341,4.0,137.94,137.9,4.10375729]
[1641817455841,68.3516,137.99,137.9,4.10375729]
[1641817456045,4.0,137.94,137.9,4.10375729]
[1641817456242,4.0,137.95,137.9,4.10375729]
[1641817456742,3.94232988,137.94,137.9,4.10375729]
[1641817457343,2.988e-05,137.94,137.91,12.76156991]
[1641817457542,4.0,137.98,137.92,1.812]
[1641817457743,10.76,138.02,137.93,5.79985596]
[1641817457942,15.25596081,138.03,137.93,5.79985596]
[1641817458143,4.0,137.97,137.93,5.79985596]
[1641817458342,5.812,138.01,137.93,5.79985596]
[1641817458547,4.0,137.97,137.93,5.79985596]
[1641817458743,1.812,138.01,137.94,2.42311606]
[1641817458943,4.49130169,138.03,137.94,2.42311606]
[1641817459143,3.1530273,138.0,137.95,5.79910846]
[1641817459343,3.1530273,138.0,137.98,7.24217845]
[1641817459544,3.1530273,138.01,137.98,7.24217845]
[1641817459844,2.68030169,138.02,137.99,4.10357452]
[1641817460543,4.0,138.01,137.99,4.10357452]
[1641817460745,4.0,138.0,137.99,4.10357452]
[1641817460943,7.15266438,138.0,137.99,4.10357452]
[1641817461342,7.15266438,138.0,137.97,4.10357452]
[1641817461543,4.0,137.99,137.97,4.10357452]
[1641817461744,4.0,137.98,137.97,4.10357452]
[1641817462143,7.15266438,137.98,137.95,4.10357452]
[1641817462544,3.15266438,137.98,137.95,4.10357452]
[1641817462744,21.06696081,138.04,137.95,4.10357452]
[1641817462945,4.0,137.97,137.95,4.10357452]
[1641817463145,1.812,138.01,137.95,4.10357452]
[1641817463546,4.0,137.96,137.93,4.10357452]
[1641817463945,4.0,137.94,137.93,4.10357452]
[1641817464145,4.0,137.94,137.91,15.33952681]
[1641817464346,2.75979654,137.94,137.91,15.33952681]
[1641817464745,4.0,137.92,137.91,15.33952681]
[1641817465548,4.0,137.92,137.87,8.35563916]
[1641817465747,3.99097534,137.92,137.91,4.10525987]
[1641817465949,7.99097534,137.92,137.91,4.10525987]
[1641817466148,3.99097534,137.93,137.87,4.10525987]
[1641817466348,3.99097534,137.93,137.9,7.24611427]
[1641817466747,19.25596081,137.98,137.91,1.812]
[1641817467047,15.25596081,137.98,137.91,1.812]